fUSD/lending_fUSD_20250404
["ID","MTS","AMOUNT","RATE_DAILY","PERIOD"]
[357143730,1743790238820,-520.0220946,0.00048767,120]
[357143732,1743790238830,-502.84817937,0.00048767,120]
[357143734,1743790238839,-500.0,0.00048767,10]
[357143736,1743790238849,-521.3624357,0.00048767,120]
[357143738,1743790238858,-500.0,0.00048767,120]
[357143739,1743790238867,-517.74473221,0.00048767,120]
[357143741,1743790238876,-485.50301334,0.00048767,120]
[357143743,1743790238886,-533.15595794,0.00048767,120]
[357143745,1743790238895,-574.08972384,0.00048767,120]
[357143747,1743790238904,-514.84621718,0.00048767,120]
[357143749,1743790238914,-513.58465182,0.00048767,120]
[357143750,1743790238923,-503.47367052,0.00048767,120]
[357143752,1743790238932,-500.0,0.00048767,120]
[357143754,1743790238941,-500.0,0.00048767,120]
[357143756,1743790238951,-556.35228733,0.00048767,120]
[357143758,1743790238960,-510.00826003,0.00048767,120]
[357143760,1743790238969,-402.05375593,0.00048767,120]
[357143762,1743790238978,-506.94443189,0.00048767,120]
[357143764,1743790238988,-539.56,0.00048767,120]
[357143766,1743790238997,-505.89747969,0.00048767,120]
[357143768,1743790239007,-500.0,0.00048767,120]
[357143769,1743790239016,-571.02753415,0.00048767,120]
[357143771,1743790239025,-505.46230818,0.00048767,120]
[357143773,1743790239034,-500.0,0.00048767,120]
[357143775,1743790239044,-502.64409148,0.00048767,120]
[357143777,1743790239053,-506.59415126,0.00048767,120]
[357143779,1743790239062,-513.28366828,0.00048767,120]
[357143781,1743790239071,-502.47419207,0.00048767,120]
[357143782,1743790239081,-511.13710817,0.00048767,120]
[357143784,1743790239090,-500.0,0.00048767,120]
[357143786,1743790239099,-503.87534331,0.00048767,120]
[357143788,1743790239108,-500.0,0.00048767,120]
[357143790,1743790239118,-500.0,0.00048767,120]
[357143792,1743790239127,-531.39445878,0.00048767,120]
[357143794,1743790239137,-510.80002112,0.00048767,120]
[357143796,1743790239148,-507.88328528,0.00048767,120]
[357143798,1743790239160,-500.0,0.00048767,120]
[357143800,1743790239169,-511.48096328,0.00048767,120]
[357143801,1743790239179,-509.02062649,0.00048767,120]
[357143803,1743790239188,-504.39223179,0.00048767,120]
[357143805,1743790239198,-501.72128769,0.00048767,120]
[357143807,1743790239208,-506.20388284,0.00048767,120]
[357143823,1743790239372,-507.35341265,0.00048767,120]
[357143825,1743790239382,-511.51689646,0.00048767,120]
[357143827,1743790239391,-510.01331089,0.00048767,120]
[357143829,1743790239400,-500.0,0.00048767,120]
[357143831,1743790239409,-523.95738492,0.00048767,120]
[357143833,1743790239418,-512.37351438,0.00048767,120]
[357143835,1743790239427,-619.59,0.00048767,120]
[357143836,1743790239437,-500.0,0.00048767,120]
[357143838,1743790239446,-500.0,0.00048767,120]
[357143840,1743790239455,-505.00059547,0.00048767,120]
[357143842,1743790239464,-516.20886364,0.00048767,120]
[357143844,1743790239473,-500.0,0.00048767,120]
[357143846,1743790239482,-500.0,0.00048767,120]
[357143848,1743790239491,-500.0,0.00048767,120]
[357143850,1743790239500,-500.0,0.00048767,120]
[357143851,1743790239509,-1000.0,0.00048767,28]
[357143853,1743790239522,-324.62577564,0.00048767,120]
[357143855,1743790239532,-507.39313583,0.00048767,120]
[357143857,1743790239544,-500.0,0.00048767,120]
[357143859,1743790239553,-500.0,0.00048767,120]
[357143861,1743790239563,-510.37863876,0.00048767,120]
[357143863,1743790239573,-500.0,0.00048767,120]
[357143865,1743790239583,-539.66895168,0.00048767,120]
[357143867,1743790239593,-827.34,0.00048767,120]
[357143869,1743790239602,-574.7103158,0.00048767,120]
[357143870,1743790239612,-500.0,0.00048767,120]
[357143872,1743790239622,-504.08976588,0.00048767,120]
[357143874,1743790239632,-500.0,0.00048767,120]
[357143876,1743790239642,-504.55557361,0.00048767,120]
[357143878,1743790239652,-504.47562028,0.00048767,120]
[357143880,1743790239661,-550.7790431,0.00048767,120]
[357143882,1743790239670,-507.97920491,0.00048767,120]
[357143884,1743790239680,-534.07361411,0.00048767,120]
[357143886,1743790239689,-514.49072321,0.00048767,120]
[357143887,1743790239699,-500.0,0.00048767,12]
[357143890,1743790239708,-500.0,0.00048767,120]
[357143893,1743790239717,-528.84966319,0.00048767,120]
[357143895,1743790239726,-531.128176,0.00048767,120]
[357143897,1743790239735,-503.63064348,0.00048767,120]
[357143899,1743790239744,-500.0,0.00048767,120]
[357143900,1743790239753,-402.20584341,0.00048767,120]
[357143901,1743790239762,-500.0,0.00048767,120]
[357143902,1743790239771,-500.0,0.00048767,120]
[357143903,1743790239780,-500.0,0.00048767,120]
[357143904,1743790239790,-500.0,0.00048767,120]
[357143905,1743790239799,-500.0,0.00048767,120]
[357143906,1743790239808,-334.90377611,0.00048767,120]
[357143907,1743790239817,-178.17076849,0.00048767,120]
[357143908,1743790239826,-500.0,0.00048767,30]
[357143909,1743790239835,-500.0,0.00048767,120]
[357143910,1743790239844,-707.52,0.00048767,120]
[357143911,1743790239854,-510.56256341,0.00048767,120]
[357143913,1743790239863,-500.0,0.00048767,120]
[357143915,1743790239872,-569.11131556,0.00048767,60]
[357143917,1743790239882,-500.0,0.00048767,120]
[357143919,1743790239891,-500.0,0.00048767,120]
[357143921,1743790239901,-500.0,0.00048767,120]
[357143923,1743790239911,-500.0,0.00048767,120]
[357143925,1743790239921,-500.0,0.00048767,120]
[357143927,1743790239930,-500.0,0.00048767,120]
[357143929,1743790239940,-500.0,0.00048767,120]
[357143931,1743790239950,-1219.9,0.00048767,120]
[357143933,1743790239960,-500.0,0.00048767,120]
[357143935,1743790239969,-520.20324713,0.00048767,120]
[357143938,1743790239979,-500.0,0.00048767,120]
[357143940,1743790239988,-525.34899254,0.00048767,120]
[357143942,1743790239997,-2532.09,0.00048767,120]
[357143944,1743790240007,-500.0,0.00048767,120]
[357143946,1743790240016,-4812.53,0.00048767,120]
[357143948,1743790240025,-500.0,0.00048767,120]
[357143950,1743790240034,-538.24913578,0.00048767,120]
[357143951,1743790240045,-534.83495399,0.00048767,120]
[357143953,1743790240054,-513.01766303,0.00048767,120]
[357143956,1743790240065,-500.0,0.00048767,120]
[357143958,1743790240074,-500.0,0.00048767,120]
[357143960,1743790240083,-500.0,0.00048767,120]
[357143961,1743790240092,-500.0,0.00048767,120]
[357143963,1743790240101,-500.0,0.00048767,120]
[357143965,1743790240110,-542.04,0.00048767,120]
[357143967,1743790240119,-500.0,0.00048767,120]
[357143969,1743790240129,-500.0,0.00048767,120]
[357143971,1743790240139,-627.49,0.00048767,120]
[357143973,1743790240149,-500.0,0.00048767,120]
[357143975,1743790240160,-500.0,0.00048767,120]
[357143977,1743790240169,-501.97984464,0.00048767,120]
[357143979,1743790240178,-591.64430669,0.00048767,120]
[357143981,1743790240189,-500.0,0.00048767,120]
[357143983,1743790240199,-500.0,0.00048767,120]
[357143985,1743790240208,-500.0,0.00048767,120]
[357143987,1743790240218,-514.17310003,0.00048767,120]
[357143990,1743790240228,-500.0,0.00048767,120]
[357143992,1743790240239,-508.26,0.00048767,120]
[357143994,1743790240250,-519.99761517,0.00048767,120]
[357143996,1743790240260,-500.0,0.00048767,120]
[357143998,1743790240270,-500.0,0.00048767,120]
[357143999,1743790240280,-500.0,0.00048767,120]
[357144001,1743790240293,-500.0,0.00048767,120]
[357144003,1743790240302,-500.0,0.00048767,120]
[357144006,1743790240312,-571.60036249,0.00048767,120]
[357144008,1743790240322,-514.47,0.00048767,120]
[357144009,1743790240331,-500.0,0.00048767,120]
[357144011,1743790240340,-500.0,0.00048767,120]
[357144013,1743790240350,-500.0,0.00048767,120]
[357144015,1743790240359,-752.65,0.00048767,120]
[357144018,1743790240369,-500.0,0.00048767,120]
[357144020,1743790240378,-500.0,0.00048767,120]
[357144021,1743790240387,-500.0,0.00048767,120]
[357144023,1743790240396,-500.0,0.00048767,120]
[357144025,1743790240406,-571.25721381,0.00048767,120]
[357144027,1743790240415,-500.0,0.00048767,120]
[357144029,1743790240424,-500.0,0.00048767,120]
[357144031,1743790240433,-222.78530134,0.00048767,120]
[357144033,1743790240443,-685.91,0.00048767,120]
[357144035,1743790240452,-500.0,0.00048767,120]
[357144037,1743790240461,-500.0,0.00048767,120]
[357144039,1743790240470,-570.54,0.00048767,120]
[357144041,1743790240479,-500.0,0.00048767,120]
[357144043,1743790240488,-500.0,0.00048767,120]
[357144045,1743790240498,-500.0,0.00048767,120]
[357144047,1743790240508,-500.0,0.00048767,120]
[357144049,1743790240517,-500.0,0.00048767,120]
[357144051,1743790240526,-500.0,0.00048767,120]
[357144053,1743790240536,-500.0,0.00048767,120]
[357144055,1743790240547,-500.0,0.00048767,120]
[357144057,1743790240556,-1792.4,0.00048767,10]
[357144059,1743790240566,-500.0,0.00048767,120]
[357144061,1743790240575,-500.0,0.00048767,120]
[357144063,1743790240584,-160.15631196,0.00048767,2]
[357144065,1743790240593,-500.0,0.00048767,120]
[357144067,1743790240602,-500.0,0.00048767,120]
[357144069,1743790240611,-500.0,0.00048767,7]
[357144071,1743790240621,-500.0,0.00048767,120]
[357144073,1743790240631,-500.0,0.00048767,120]
[357144075,1743790240640,-500.0,0.00048767,120]
[357144077,1743790240650,-500.0,0.00048767,120]
[357144079,1743790240659,-370.76122789,0.00048767,120]
[357144081,1743790240668,-301.5294748,0.00048767,120]
[357144083,1743790240678,-500.0,0.00048767,2]
[357144085,1743790240687,-500.0,0.00048767,120]
[357144087,1743790240696,-500.0,0.00048767,30]
[357144089,1743790240706,-609.54692479,0.00048767,120]
[357144091,1743790240715,-500.0,0.00048767,120]
[357144093,1743790240725,-588.3441,0.0004877,2]
[357144095,1743790240734,-1404.3491,0.0004878,2]
[357144097,1743790240744,-150.0,0.00048782,7]
[357144099,1743790240753,-920.99864036,0.0004879,76]
[357144101,1743790240763,-150.0,0.00048801,7]
[357144103,1743790240772,-150.0,0.0004885,7]
[357144105,1743790240782,-21767.30788861,0.0004888,30]
[357144107,1743790240792,-150.0,0.0004888,7]
[357144109,1743790240802,-500.0,0.0004888,2]
[357144112,1743790240814,-500.0,0.0004888,120]
[357144114,1743790240823,-13327.1787308,0.0004888,4]
[357144116,1743790240833,-361.052,0.00048889,85]
[357144117,1743790240842,-643.12513244,0.0004889,21]
[357144119,1743790240851,-53308.7149232,0.0004889,4]
[357144121,1743790240860,-1367.797,0.0004889,2]
[357144123,1743790240870,-11568.5213,0.0004889,2]
[357144125,1743790240879,-262.68,0.0004889,2]
[357144127,1743790240889,-481.2991,0.0004889,2]
[357144129,1743790240899,-444.6663,0.0004889,2]
[357144131,1743790240908,-1307.6148,0.0004889,2]
[357144133,1743790240918,-1000.0,0.0004889,2]
[357144135,1743790240928,-500.0,0.00048899,2]
[357144137,1743790240937,-500.0,0.00048899,120]
[357144139,1743790240946,-152.29444619,0.000489,25]
[357144141,1743790240955,-500.0,0.000489,2]
[357144143,1743790240964,-47501.1726,0.000489,2]
[357144145,1743790240974,-50000.0,0.000489,120]
[357144147,1743790240983,-262.8593,0.000489,2]
[357144149,1743790240992,-154.09630242,0.000489,34]
[357144151,1743790241001,-593.48756659,0.00048907,15]
[357144153,1743790241011,-150.56,0.0004897,2]
[357144155,1743790241021,-500.0,0.0004898,2]
[357144157,1743790241030,-500.0,0.0004898,120]
[357144159,1743790241042,-106617.429846,0.0004898,4]
[357144161,1743790241051,-230.7690494,0.0004898,4]
[357144163,1743790241061,-26654.3574616,0.00048989,4]
[357144166,1743790241071,-230.7690494,0.00048989,4]
[357144167,1743790241081,-150.56,0.00048989,120]
[357144170,1743790241090,-500.0,0.00048989,120]
[357144171,1743790241099,-500.0,0.00048989,120]
[357144173,1743790241108,-500.0,0.00048989,120]
[357144175,1743790241118,-565.77468709,0.00048989,120]
[357144177,1743790241128,-500.0,0.00048989,120]
[357144179,1743790241137,-500.0,0.00048989,120]
[357144181,1743790241149,-500.0,0.00048989,120]
[357144183,1743790241158,-500.0,0.00048989,120]
[357144185,1743790241168,-500.0,0.00048989,120]
[357144187,1743790241177,-371.06692678,0.00048989,120]
[357144189,1743790241187,-256.45093514,0.00048989,120]
[357144191,1743790241196,-1875.29,0.00048989,120]
[357144193,1743790241205,-500.0,0.00048989,120]
[357144195,1743790241215,-562.80074769,0.00048989,120]
[357144197,1743790241226,-500.0,0.00048989,120]
[357144199,1743790241236,-524.14,0.00048989,120]
[357144201,1743790241246,-501.98725747,0.00048989,120]
[357144203,1743790241255,-1974.33,0.00048989,120]
[357144205,1743790241267,-500.0,0.00048989,120]
[357144207,1743790241276,-611.34098416,0.00048989,120]
[357144209,1743790241286,-500.0,0.00048989,120]
[357144211,1743790241298,-825.72,0.00048989,120]
[357144213,1743790241307,-500.0,0.00048989,120]
[357144215,1743790241316,-500.0,0.00048989,2]
[357144217,1743790241325,-908.92,0.00048989,120]
[357144219,1743790241336,-500.0,0.00048989,120]
[357144221,1743790241346,-619.97,0.00048989,120]
[357144223,1743790241355,-619.97,0.00048989,120]
[357144225,1743790241364,-619.97,0.00048989,120]
[357144227,1743790241373,-500.0,0.00048989,120]
[357144229,1743790241382,-500.0,0.00048989,120]
[357144231,1743790241391,-595.6247796,0.00048989,120]
[357144233,1743790241401,-150.5028315,0.00048989,120]
[357144235,1743790241410,-500.0,0.00048989,120]
[357144237,1743790241419,-500.0,0.00048989,120]
[357144239,1743790241429,-500.0,0.00048989,120]
[357144241,1743790241439,-500.0,0.00048989,120]
[357144243,1743790241448,-793.57,0.00048989,120]
[357144245,1743790241457,-500.0,0.00048989,120]
[357144247,1743790241466,-6180.897709,0.00048989,120]
[357144249,1743790241475,-500.0,0.00048989,2]
[357144251,1743790241485,-13327.1787308,0.0004899,4]
[357144253,1743790241494,-106617.429846,0.0004899,4]
[357144255,1743790241503,-1153.845247,0.0004899,4]
[357144257,1743790241513,-150.56,0.0004899,120]
[357144259,1743790241522,-150.56,0.0004899,120]
[357144262,1743790241532,-150.56,0.0004899,120]
[357144264,1743790241543,-500.0,0.00048999,2]
[357144266,1743790241553,-500.0,0.00048999,2]
[357144267,1743790241564,-500.0,0.00048999,2]
[357144270,1743790241574,-500.0,0.00048999,2]
[357144271,1743790241584,-522.59961057,0.00048999,2]
[357144274,1743790241595,-1109.981995,0.00048999,120]
[357144275,1743790241604,-914.037372,0.00048999,120]
[357144277,1743790241616,-178.343282,0.00048999,120]
[357144279,1743790241628,-500.0,0.00048999,120]
[357144281,1743790241639,-500.0,0.00048999,120]
[357144283,1743790241650,-500.0,0.00048999,120]
[357144285,1743790241661,-500.0,0.00048999,120]
[357144288,1743790241673,-500.0,0.00048999,120]
[357144290,1743790241685,-500.0,0.00048999,120]
[357144302,1743790241695,-500.0,0.00048999,100]
[357144305,1743790241812,-1094.69942,0.00048999,120]
[357144307,1743790241822,-500.0,0.00048999,120]
[357144309,1743790241833,-746.2,0.00048999,120]
[357144311,1743790241842,-500.0,0.00048999,120]
[357144313,1743790241852,-500.0,0.00048999,120]
[357144315,1743790241861,-500.0,0.00048999,120]
[357144317,1743790241870,-500.0,0.00048999,120]
[357144319,1743790241879,-500.0,0.00048999,120]
[357144321,1743790241889,-500.0,0.00048999,120]
[357144323,1743790241898,-500.0,0.00048999,120]
[357144325,1743790241907,-500.0,0.00048999,120]
[357144327,1743790241916,-595.16401569,0.00048999,120]
[357144329,1743790241925,-500.0,0.00048999,120]
[357144330,1743790241934,-500.0,0.00048999,120]
[357144332,1743790241943,-185.03799937,0.00048999,120]
[357144334,1743790241952,-500.0,0.00048999,120]
[357144336,1743790241961,-500.0,0.00048999,10]
[357144338,1743790241971,-500.0,0.00048999,120]
[357144341,1743790241980,-654.5,0.00048999,120]
[357144343,1743790241990,-500.0,0.00048999,120]
[357144345,1743790242000,-500.0,0.00048999,120]
[357144347,1743790242010,-578.75664656,0.00048999,120]
[357144349,1743790242020,-934.65,0.00048999,120]
[357144350,1743790242032,-500.0,0.00048999,120]
[357144352,1743790242041,-500.0,0.00048999,120]
[357144354,1743790242050,-500.0,0.00048999,120]
[357144356,1743790242059,-500.0,0.00048999,120]
[357144358,1743790242068,-500.0,0.00048999,120]
[357144360,1743790242078,-500.0,0.00048999,120]
[357144362,1743790242086,-500.0,0.00048999,120]
[357144364,1743790242096,-592.04679332,0.00048999,120]
[357144366,1743790242105,-619.97,0.00048999,120]
[357144368,1743790242114,-574.43819566,0.00048999,120]
[357144370,1743790242124,-619.97,0.00048999,120]
[357144372,1743790242133,-619.97,0.00048999,120]
[357144374,1743790242146,-619.97,0.00048999,120]
[357144376,1743790242156,-500.0,0.00048999,120]
[357144378,1743790242165,-614.86501717,0.00048999,120]
[357144380,1743790242174,-444.1136701,0.00048999,120]
[357144382,1743790242183,-500.0,0.00048999,120]
[357144384,1743790242192,-500.0,0.00048999,120]
[357144386,1743790242202,-500.0,0.00048999,120]
[357144388,1743790242211,-500.0,0.00048999,120]
[357144390,1743790242221,-269.95083642,0.00048999,120]
[357144392,1743790242231,-2359.71,0.00048999,7]
[357144394,1743790242241,-1318.54,0.00048999,120]
[357144396,1743790242250,-1118.39,0.00048999,120]
[357144398,1743790242259,-360.43018839,0.00049,14]
[357144400,1743790242268,-30455.85918793,0.00049,14]
[357144402,1743790242277,-333161.22509779,0.00049,60]
[357144405,1743790242297,-2199.745,0.00049,60]
[357144407,1743790242308,-286.85471901,0.00049,60]
[357144412,1743790242353,-268.25522138,0.00049,60]
[357144415,1743790242364,-35840.23829252,0.00049,60]
[357144429,1743790242501,-465.276563,0.00049,60]
[357144432,1743790242513,-2582.3108022,0.00049,60]
[357144436,1743790242548,-300.0,0.00049,120]
[357144484,1743790243085,-127.11443035,0.00047445,2]
[357144489,1743790243217,-2236.06242287,0.00047445,2]
[357144490,1743790243227,-5448.97762671,0.00049,60]
[357144491,1743790243270,-294.976005,0.00049,60]
[357144492,1743790243282,-280.40300004,0.00049,60]
[357144495,1743790245027,-151.16351891,0.00048767,120]
[357144508,1743790245997,-348.83648109,0.00048767,120]
[357144509,1743790246006,-500.0,0.00048989,120]
[357144510,1743790246016,-205.02848592,0.00048989,120]
[357144511,1743790246025,-337.69684745,0.00049,60]
[357144512,1743790246105,-327.983998,0.00049,60]
[357144513,1743790246117,-832.4585784,0.00049,60]
[357144514,1743790246159,-20156.54161605,0.00049,60]
[357144515,1743790246171,-74284.68049719,0.00049,60]
[357144516,1743790246182,-8399.7171766,0.00049,60]
[357144517,1743790246266,-360.08234564,0.00049,60]
[357144518,1743790246506,-507.76019469,0.00049,60]
[357144519,1743790246518,-1000.0,0.00049,60]
[357144520,1743790246528,-106941.344,0.00049,60]
[357144522,1743790246544,-766.24272863,0.00048767,120]
[357144523,1743790246555,-166.04727137,0.00048767,120]
[357144524,1743790246564,-6624.18964863,0.00049,60]
[357144525,1743790246575,-2879.202371,0.00049,60]
[357144526,1743790246586,-600.86929527,0.00049,60]
[357144527,1743790334573,288.0376774,0.00044284,2]
[357144528,1743790424966,-153.90742366,0.00048467,120]
[357144529,1743790438785,-150.0,0.00046808,2]
[357144530,1743790451370,-150.0,0.000453,5]
[357144531,1743790502194,-300.0,0.000453,5]
[357144532,1743790514904,-10.00571429,0.00048467,120]
[357144533,1743790514927,-189.99428571,0.00048766,120]
[357144534,1743790954342,-150.0,0.00026849,2]
[357144535,1743791070550,-4.52,0.00026849,2]
[357144536,1743791070575,-171.0647004,0.00033466,2]
[357144541,1743791136556,-150.0,0.00016,2]
[357144542,1743791138179,-481.45186345,0.00016,2]
[357144543,1743791155088,-1148.84840589,0.00016,2]
[357144544,1743791155117,-343.18466447,0.0002,2]
[357144545,1743791158312,-164.58300598,0.0001995,2]
[357144546,1743791178111,-150.0,0.0001985,2]
[357144547,1743791224794,-150.0,0.0001985,2]
[357144548,1743791245123,-136.13662644,0.0001995,2]
[357144549,1743791245145,-300.0,0.00019999,2]
[357144550,1743791245165,-150.0,0.00019999,2]
[357144551,1743791245185,-203.37291683,0.00019999,2]
[357144552,1743791245209,-2508.16796998,0.0002,2]
[357144553,1743791255064,-171.04350908,0.000199,2]
[357144554,1743791282668,-150.0,0.000199,2]
[357144555,1743791295006,-164.99533911,0.000199,2]
[357144556,1743791298013,-257.69872862,0.000199,2]
[357144557,1743791349097,-34.84349519,0.000199,2]
[357144558,1743791349119,-602.6003909,0.000199,2]
[357144559,1743791349141,-2177.57635912,0.000199,2]
[357144560,1743791349164,-164.99533911,0.00019973,2]
[357144561,1743791349184,-504.18759803,0.00019973,2]
[357144562,1743791349207,-20440.08678874,0.0002,2]
[357144563,1743791354152,-29817.16248,0.0002,2]
[357144564,1743791360112,-2354.21774398,0.0002,2]
[357144565,1743791362115,-886.17034779,0.0002,2]
[357144566,1743791363156,-57227.71054,0.0002,2]
[357144567,1743791364093,-10629.34153974,0.0002,2]
[357144573,1743791369095,-26672.54289228,0.0002,2]
[357144574,1743791370108,-4414.748884,0.0002,2]
[357144575,1743791370138,-17858.90704941,0.0002,2]
[357144588,1743791432294,-154.09630242,0.000199,2]
[357144589,1743791432304,-223.61256857,0.0001999,2]
[357144590,1743791432507,-1000.0,0.0001999,2]
[357144601,1743791437986,-27489.92673812,0.0001999,2]
[357144602,1743791437996,-70511.29861296,0.0002,2]
[357144603,1743791438008,-1213122.37356228,0.0002,2]
[357144604,1743791438202,-12991.82258149,0.0002,2]
[357144605,1743791438213,-20013.31589245,0.0002,2]
[357144998,1743791446180,-8257.46982,0.0002,2]
[357144999,1743791446310,-2100.33933206,0.0002,2]
[357145000,1743791446326,-25140.8962664,0.0002,2]
[357145001,1743791446338,-8612.56941838,0.0002,2]
[357145002,1743791446348,-1019.86074384,0.0002,2]
[357145003,1743791446358,-150.56,0.0002,2]
[357145004,1743791446368,-150.56,0.0002,2]
[357145005,1743791446378,-150.56,0.0002,2]
[357145006,1743791446388,-1546.06201985,0.00021,2]
[357145007,1743791446397,-152.58269208,0.00022,3]
[357145008,1743791446407,-602.60039089,0.00023233,2]
[357145009,1743791446416,-2177.57635912,0.00023233,2]
[357145010,1743791446425,-796.07725495,0.0002361,7]
[357145011,1743791446434,-5000.00975405,0.00024,5]
[357145012,1743791446443,-506.20388184,0.000241,2]
[357145013,1743791446453,-150.56,0.0002479,2]
[357145014,1743791446462,-150.56,0.0002479,2]
[357145015,1743791446472,-58834.7857846,0.000248,2]
[357145016,1743791446492,-16232.29778632,0.000248,2]
[357145043,1743791446821,-150.77247452,0.000248,2]
[357145051,1743791539880,-150.0,0.00019989,2]
[357145052,1743791561990,-184.11755892,0.00024799,2]
[357145053,1743791562565,-184.11755892,0.00024799,2]
[357145054,1743791573524,-150.0,0.000247,2]
[357145055,1743791826744,302.0,0.00035881,30]
[357145056,1743791829198,1000.0,0.00035881,30]
[357145057,1743792332115,-231.548743,0.00024675,2]
[357145058,1743792332149,-250.0,0.00024681,2]
[357145059,1743792332177,-219.58431454,0.00025273,2]
[357145060,1743792439197,-239.08072244,0.0002,2]
[357145061,1743792439220,-150.0,0.0002,2]
[357145062,1743792439242,-142.14899272,0.00022,2]
[357145063,1743792440130,-107.85100728,0.00022,2]
[357145064,1743792440155,-53.77879009,0.000225,2]
[357145065,1743792442130,-196.22120991,0.000225,2]
[357145066,1743792442152,-623.45039046,0.00024091,2]
[357145067,1743792451085,-211.47693341,0.00024091,2]
[357145068,1743792453122,-328.02925987,0.00024091,2]
[357145069,1743792546098,-250.0,0.00024091,2]
[357145070,1743792546119,-187.9463396,0.00024091,2]
[357145071,1743792548216,-62.0536604,0.00024091,2]
[357145072,1743792548237,-250.0,0.00024266,2]
[357145073,1743792548258,-150.0,0.00025,2]
[357145074,1743792548279,-959.87853195,0.00025,2]
[357145075,1743792548300,-3021.152775,0.00025173,2]
[357145076,1743792548321,-952.7537384,0.000253,2]
[357145077,1743792548342,-177.46,0.00025528,2]
[357145078,1743792548362,-316.44025405,0.00026299,2]
[357145079,1743792548382,-750.0,0.00026398,2]
[357145080,1743792548403,-300.0,0.00026398,2]
[357145081,1743792548423,-197.45132369,0.00026399,2]
[357145082,1743792548445,-392.55563411,0.00026399,2]
[357145083,1743792548466,-474.3860504,0.00026399,2]
[357145085,1743792555107,-25.6139496,0.00026399,2]
[357145086,1743792555129,-500.0,0.00026399,2]
[357145087,1743792555150,-500.0,0.00026399,2]
[357145088,1743792555176,-500.0,0.00026399,2]
[357145089,1743792555197,-500.0,0.00026399,2]
[357145090,1743792555219,-500.0,0.00026399,2]
[357145091,1743792555239,-500.0,0.00026399,2]
[357145092,1743792555260,-500.0,0.00026399,2]
[357145093,1743792555280,-500.0,0.00026399,2]
[357145094,1743792555302,-500.0,0.00026399,2]
[357145095,1743792555321,-500.0,0.00026399,2]
[357145096,1743792555342,-500.0,0.00026399,2]
[357145097,1743792555362,-500.0,0.00026399,2]
[357145098,1743792555384,-500.0,0.00026399,2]
[357145099,1743792555404,-500.0,0.00026399,2]
[357145100,1743792555424,-337.42852997,0.00026399,2]
[357145101,1743792555445,-653.25447263,0.000264,2]
[357145102,1743792565077,-12790.03931514,0.000264,2]
[357145103,1743792565099,-250.0,0.000265,2]
[357145104,1743792565120,-150.0,0.00026822,2]
[357145105,1743792565141,-322.17,0.00026849,2]
[357145106,1743792565161,-316.44025404,0.00028133,2]
[357145107,1743792565182,-420.0,0.00028557,2]
[357145108,1743792565203,-999.99,0.00029009,2]
[357145109,1743792565224,-1315.3,0.000299,2]
[357145110,1743792565245,-316.44025404,0.00029967,2]
[357145111,1743792565265,-3553.16897678,0.0002999,2]
[357145112,1743792569123,-2800.88990171,0.0002999,2]
[357145113,1743792569147,-545.527,0.00029999,24]
[357145114,1743792569169,-32375.42654219,0.0003,5]
[357145115,1743792569191,-150.0,0.0003,2]
[357145116,1743792569212,-587.0,0.00030892,2]
[357145117,1743792569234,-150.0,0.00031235,7]
[357145118,1743792569256,-7622.73,0.00031323,2]